[Event "Titled Tuesday Blitz August 08 Early 2023"]
[White "Andreikin, Dmitry"]
[Black "Ashraf, Artin"]
[WhiteFideId "4158814"]
[BlackFideId "22514805"]
[WhiteElo "2997"]
[BlackElo "2810"]
[Result "1-0"]
[Round "7"]
[TimeControl "180+1"]
[Date "2023.08.08"]
[WhiteClock "0:00:32"]
[BlackClock "0:00:00"]
[Board "10"]

1. d4 {[%clk 0:03:00]}  a6 {[%clk 0:02:58]} 2. Bf4 {[%clk 0:02:54]}  Nf6 {[%clk 0:02:54]} 3. e3 {[%clk 0:02:53]}  d5 {[%clk 0:02:50]} 4. Nd2 {[%clk 0:02:51]}  c5 {[%clk 0:02:47]} 5. c3 {[%clk 0:02:51]}  Nc6 {[%clk 0:02:45]} 6. Ngf3 {[%clk 0:02:50]}  Bg4 {[%clk 0:02:44]} 7. h3 {[%clk 0:02:44]}  Bh5 {[%clk 0:02:20]} 8. g4 {[%clk 0:02:35]}  Bg6 {[%clk 0:02:20]} 9. dxc5 {[%clk 0:02:26]}  Ne4 {[%clk 0:02:18]} 10. b4 {[%clk 0:01:46]}  Nxc3 {[%clk 0:01:45]} 11. Qb3 {[%clk 0:01:45]}  Ne4 {[%clk 0:01:45]} 12. Rd1 {[%clk 0:01:45]}  e6 {[%clk 0:01:16]} 13. Ne5 {[%clk 0:01:44]}  Be7 {[%clk 0:00:58]} 14. Bg2 {[%clk 0:01:29]}  Nxe5 {[%clk 0:00:43]} 15. Bxe5 {[%clk 0:01:27]}  Nxd2 {[%clk 0:00:36]} 16. Rxd2 {[%clk 0:01:21]}  O-O {[%clk 0:00:35]} 17. O-O {[%clk 0:01:18]}  b6 {[%clk 0:00:30]} 18. e4 {[%clk 0:01:09]}  bxc5 {[%clk 0:00:07]} 19. exd5 {[%clk 0:01:09]}  cxb4 {[%clk 0:00:07]} 20. d6 {[%clk 0:01:00]}  Bg5 {[%clk 0:00:04]} 21. f4 {[%clk 0:01:00]}  Bh4 {[%clk 0:00:04]} 22. d7 {[%clk 0:00:52]}  Ra7 {[%clk 0:00:02]} 23. Rfd1 {[%clk 0:00:52]}  f6 {[%clk 0:00:00]} 24. Bb8 {[%clk 0:00:32]} 1-0


[Site "https://www.chess.com"]

[Event "Titled Tuesday Blitz August 08 Early 2023"]
[White "Kumsiashvili, Nikoloz"]
[Black "Demidov, Mikhail"]
[WhiteFideId "13600621"]
[BlackFideId "4197143"]
[WhiteElo "2758"]
[BlackElo "2960"]
[Result "0-1"]
[Round "7"]
[TimeControl "180+1"]
[Date "2023.08.08"]
[WhiteClock "0:00:05"]
[BlackClock "0:01:14"]
[Board "12"]

1. Nf3 {[%clk 0:03:00]}  g6 {[%clk 0:02:57]} 2. d4 {[%clk 0:02:58]}  Bg7 {[%clk 0:02:57]} 3. c4 {[%clk 0:02:59]}  d6 {[%clk 0:02:57]} 4. Nc3 {[%clk 0:02:54]}  e5 {[%clk 0:02:56]} 5. dxe5 {[%clk 0:02:54]}  dxe5 {[%clk 0:02:56]} 6. Qxd8+ {[%clk 0:02:54]}  Kxd8 {[%clk 0:02:57]} 7. Bd2 {[%clk 0:02:54]}  Be6 {[%clk 0:02:37]} 8. O-O-O {[%clk 0:02:41]}  Ke8 {[%clk 0:02:37]} 9. Nd5 {[%clk 0:02:27]}  Na6 {[%clk 0:02:32]} 10. Ng5 {[%clk 0:01:25]}  Bxd5 {[%clk 0:02:28]} 11. cxd5 {[%clk 0:01:24]}  Nc5 {[%clk 0:02:28]} 12. e4 {[%clk 0:01:16]}  Bh6 {[%clk 0:02:23]} 13. f3 {[%clk 0:01:07]}  f6 {[%clk 0:02:20]} 14. Ne6 {[%clk 0:00:57]}  Nxe6 {[%clk 0:02:11]} 15. Bxh6 {[%clk 0:00:42]}  Nxh6 {[%clk 0:02:08]} 16. dxe6 {[%clk 0:00:41]}  Rd8 {[%clk 0:02:08]} 17. Bc4 {[%clk 0:00:29]}  Ke7 {[%clk 0:02:07]} 18. g3 {[%clk 0:00:20]}  Rxd1+ {[%clk 0:02:05]} 19. Rxd1 {[%clk 0:00:19]}  Rd8 {[%clk 0:02:06]} 20. Rxd8 {[%clk 0:00:20]}  Kxd8 {[%clk 0:02:05]} 21. Kd2 {[%clk 0:00:19]}  Ke7 {[%clk 0:02:02]} 22. f4 {[%clk 0:00:18]}  exf4 {[%clk 0:01:46]} 23. gxf4 {[%clk 0:00:19]}  f5 {[%clk 0:01:46]} 24. e5 {[%clk 0:00:14]}  Ng4 {[%clk 0:01:38]} 25. h4 {[%clk 0:00:14]}  Nf2 {[%clk 0:01:33]} 26. b4 {[%clk 0:00:10]}  c6 {[%clk 0:01:30]} 27. Ke3 {[%clk 0:00:08]}  Ne4 {[%clk 0:01:29]} 28. a3 {[%clk 0:00:06]}  Ng3 {[%clk 0:01:29]} 29. Kf3 {[%clk 0:00:06]}  Nh5 {[%clk 0:01:28]} 30. Ke3 {[%clk 0:00:06]}  Ng7 {[%clk 0:01:27]} 31. Kd4 {[%clk 0:00:06]}  b6 {[%clk 0:01:22]} 32. a4 {[%clk 0:00:05]}  Nxe6+ {[%clk 0:01:20]} 33. Bxe6 {[%clk 0:00:05]}  Kxe6 {[%clk 0:01:20]} 34. a5 {[%clk 0:00:06]}  h6 {[%clk 0:01:19]} 35. Kc4 {[%clk 0:00:06]}  g5 {[%clk 0:01:17]} 36. hxg5 {[%clk 0:00:04]}  hxg5 {[%clk 0:01:17]} 37. fxg5 {[%clk 0:00:04]}  Kxe5 {[%clk 0:01:18]} 38. a6 {[%clk 0:00:04]}  f4 {[%clk 0:01:15]} 39. g6 {[%clk 0:00:04]}  Kf6 {[%clk 0:01:15]} 40. g7 {[%clk 0:00:03]}  Kxg7 {[%clk 0:01:15]} 41. b5 {[%clk 0:00:04]}  cxb5+ {[%clk 0:01:14]} 42. Kxb5 {[%clk 0:00:05]}  f3 {[%clk 0:01:14]} 43. Kc6 {[%clk 0:00:05]}  f2 {[%clk 0:01:14]} 44. Kb7 {[%clk 0:00:06]}  f1=Q {[%clk 0:01:14]} 45. Kxa7 {[%clk 0:00:05]}  b5 {[%clk 0:01:14]} 0-1


[Site "https://www.chess.com"]

[Event "Titled Tuesday Blitz August 08 Early 2023"]
[White "Alex_Sahakyan2006"]
[Black "Alekseev, Evgeny"]
[BlackFideId "4138147"]
[WhiteElo "2731"]
[BlackElo "2947"]
[Result "0-1"]
[Round "7"]
[TimeControl "180+1"]
[Date "2023.08.08"]
[WhiteClock "0:00:04"]
[BlackClock "0:01:02"]
[Board "13"]

1. d4 {[%clk 0:03:00]}  Nf6 {[%clk 0:02:58]} 2. c4 {[%clk 0:03:00]}  e6 {[%clk 0:02:58]} 3. Nf3 {[%clk 0:02:59]}  d5 {[%clk 0:02:58]} 4. Nc3 {[%clk 0:02:59]}  Bb4 {[%clk 0:02:58]} 5. Qa4+ {[%clk 0:02:53]}  Nc6 {[%clk 0:02:58]} 6. a3 {[%clk 0:02:54]}  Bxc3+ {[%clk 0:02:57]} 7. bxc3 {[%clk 0:02:55]}  h6 {[%clk 0:02:56]} 8. e3 {[%clk 0:02:50]}  O-O {[%clk 0:02:54]} 9. Qc2 {[%clk 0:02:48]}  Na5 {[%clk 0:02:52]} 10. cxd5 {[%clk 0:02:47]}  exd5 {[%clk 0:02:52]} 11. Bd3 {[%clk 0:02:41]}  Be6 {[%clk 0:02:50]} 12. O-O {[%clk 0:02:38]}  Rc8 {[%clk 0:02:47]} 13. a4 {[%clk 0:02:38]}  Re8 {[%clk 0:02:46]} 14. Rb1 {[%clk 0:02:24]}  c6 {[%clk 0:02:40]} 15. Ba3 {[%clk 0:02:17]}  Qc7 {[%clk 0:02:32]} 16. Ne5 {[%clk 0:02:12]}  Ne4 {[%clk 0:02:15]} 17. c4 {[%clk 0:01:55]}  f6 {[%clk 0:02:11]} 18. Ng6 {[%clk 0:01:53]}  Bf7 {[%clk 0:02:06]} 19. cxd5 {[%clk 0:00:31]}  cxd5 {[%clk 0:02:03]} 20. Qxc7 {[%clk 0:00:28]}  Rxc7 {[%clk 0:02:03]} 21. Nf4 {[%clk 0:00:23]}  Nc4 {[%clk 0:01:56]} 22. Bxc4 {[%clk 0:00:18]}  dxc4 {[%clk 0:01:55]} 23. Rfc1 {[%clk 0:00:18]}  c3 {[%clk 0:01:51]} 24. Rc2 {[%clk 0:00:13]}  Rec8 {[%clk 0:01:38]} 25. Ne2 {[%clk 0:00:14]}  Bc4 {[%clk 0:01:28]} 26. Rbc1 {[%clk 0:00:08]}  Bb3 {[%clk 0:01:23]} 27. f3 {[%clk 0:00:06]}  Bxc2 {[%clk 0:01:20]} 28. Rxc2 {[%clk 0:00:07]}  Nd2 {[%clk 0:01:20]} 29. Bd6 {[%clk 0:00:05]}  Rc4 {[%clk 0:01:18]} 30. a5 {[%clk 0:00:04]}  b5 {[%clk 0:01:15]} 31. Bc5 {[%clk 0:00:03]}  b4 {[%clk 0:01:14]} 32. Kf2 {[%clk 0:00:02]}  Nb3 {[%clk 0:01:09]} 33. Bxa7 {[%clk 0:00:02]}  Nxa5 {[%clk 0:01:09]} 34. Bb6 {[%clk 0:00:02]}  b3 {[%clk 0:01:05]} 35. Bxa5 {[%clk 0:00:02]}  bxc2 {[%clk 0:01:04]} 36. Ke1 {[%clk 0:00:03]}  Ra8 {[%clk 0:01:03]} 37. Bxc3 {[%clk 0:00:03]}  Rxc3 {[%clk 0:01:03]} 38. Nxc3 {[%clk 0:00:04]}  c1=Q+ {[%clk 0:01:02]} 0-1


[Site "https://www.chess.com"]

[Event "Titled Tuesday Blitz August 08 Early 2023"]
[White "Csonka, Balazs"]
[Black "Indjic, Aleksandar"]
[WhiteFideId "742910"]
[BlackFideId "911925"]
[WhiteElo "2729"]
[BlackElo "2935"]
[Result "0-1"]
[Round "7"]
[TimeControl "180+1"]
[Date "2023.08.08"]
[WhiteClock "0:00:00"]
[BlackClock "0:00:21"]
[Board "14"]

1. d4 {[%clk 0:03:00]}  Nf6 {[%clk 0:02:55]} 2. c4 {[%clk 0:02:59]}  e6 {[%clk 0:02:55]} 3. Nf3 {[%clk 0:02:57]}  c5 {[%clk 0:02:56]} 4. d5 {[%clk 0:02:57]}  d6 {[%clk 0:02:57]} 5. Nc3 {[%clk 0:02:57]}  exd5 {[%clk 0:02:58]} 6. cxd5 {[%clk 0:02:57]}  g6 {[%clk 0:02:57]} 7. Bf4 {[%clk 0:02:58]}  Bg7 {[%clk 0:02:58]} 8. Qa4+ {[%clk 0:02:57]}  Bd7 {[%clk 0:02:57]} 9. Qb3 {[%clk 0:02:57]}  O-O {[%clk 0:02:58]} 10. Bxd6 {[%clk 0:02:50]}  Ba4 {[%clk 0:02:56]} 11. Qxa4 {[%clk 0:02:40]}  Qxd6 {[%clk 0:02:57]} 12. Rd1 {[%clk 0:02:28]}  a6 {[%clk 0:02:54]} 13. e3 {[%clk 0:02:24]}  Nbd7 {[%clk 0:02:54]} 14. Be2 {[%clk 0:02:21]}  Rfe8 {[%clk 0:02:51]} 15. O-O {[%clk 0:02:21]}  b5 {[%clk 0:02:51]} 16. Qc2 {[%clk 0:02:21]}  c4 {[%clk 0:02:44]} 17. a3 {[%clk 0:02:01]}  Rac8 {[%clk 0:02:30]} 18. h3 {[%clk 0:01:40]}  Nc5 {[%clk 0:02:28]} 19. Nd4 {[%clk 0:01:38]}  Nfd7 {[%clk 0:02:14]} 20. Nc6 {[%clk 0:01:26]}  Ne5 {[%clk 0:02:09]} 21. Nxe5 {[%clk 0:01:26]}  Bxe5 {[%clk 0:02:07]} 22. Bg4 {[%clk 0:01:10]}  f5 {[%clk 0:02:06]} 23. Bf3 {[%clk 0:01:06]}  Kg7 {[%clk 0:02:04]} 24. Ne2 {[%clk 0:00:58]}  Nd3 {[%clk 0:02:00]} 25. Nc3 {[%clk 0:00:53]}  Qf6 {[%clk 0:01:59]} 26. d6 {[%clk 0:00:33]}  Bxd6 {[%clk 0:01:58]} 27. Be2 {[%clk 0:00:30]}  Qe5 {[%clk 0:01:48]} 28. g3 {[%clk 0:00:27]}  Nxf2 {[%clk 0:01:47]} 29. Rxf2 {[%clk 0:00:27]}  Qxg3+ {[%clk 0:01:47]} 30. Rg2 {[%clk 0:00:24]}  Qxe3+ {[%clk 0:01:47]} 31. Kf1 {[%clk 0:00:25]}  Bc5 {[%clk 0:01:34]} 32. Rd7+ {[%clk 0:00:24]}  Kh8 {[%clk 0:00:37]} 33. Nd1 {[%clk 0:00:24]}  Qxh3 {[%clk 0:00:33]} 34. Qc3+ {[%clk 0:00:24]}  Qxc3 {[%clk 0:00:33]} 35. Nxc3 {[%clk 0:00:22]}  Rcd8 {[%clk 0:00:33]} 36. Rc7 {[%clk 0:00:17]}  Bd4 {[%clk 0:00:32]} 37. Rh2 {[%clk 0:00:16]}  Bg7 {[%clk 0:00:31]} 38. a4 {[%clk 0:00:05]}  b4 {[%clk 0:00:30]} 39. Nd1 {[%clk 0:00:06]}  Rc8 {[%clk 0:00:24]} 40. Rxc8 {[%clk 0:00:04]}  Rxc8 {[%clk 0:00:25]} 41. Ne3 {[%clk 0:00:05]}  c3 {[%clk 0:00:24]} 42. bxc3 {[%clk 0:00:05]}  Rxc3 {[%clk 0:00:23]} 43. Nd5 {[%clk 0:00:05]}  Rc1+ {[%clk 0:00:22]} 44. Kf2 {[%clk 0:00:03]}  b3 {[%clk 0:00:22]} 45. Bd3 {[%clk 0:00:00]}  b2 {[%clk 0:00:21]} 0-1


[Site "https://www.chess.com"]

[Event "Titled Tuesday Blitz August 08 Early 2023"]
[White "Sjugirov, Sanan"]
[Black "Skliarov, Viktor"]
[WhiteFideId "4189302"]
[BlackFideId "14106736"]
[WhiteElo "2930"]
[BlackElo "2704"]
[Result "1-0"]
[Round "7"]
[TimeControl "180+1"]
[Date "2023.08.08"]
[WhiteClock "0:00:07"]
[BlackClock "0:00:01"]
[Board "15"]

1. e4 {[%clk 0:03:00]}  c5 {[%clk 0:02:58]} 2. Nf3 {[%clk 0:03:00]}  Nc6 {[%clk 0:02:52]} 3. Bb5 {[%clk 0:03:00]}  e6 {[%clk 0:02:51]} 4. Bxc6 {[%clk 0:02:59]}  bxc6 {[%clk 0:02:51]} 5. b3 {[%clk 0:02:59]}  Ne7 {[%clk 0:02:44]} 6. d3 {[%clk 0:02:50]}  Ng6 {[%clk 0:02:41]} 7. h4 {[%clk 0:02:49]}  h5 {[%clk 0:02:39]} 8. Bb2 {[%clk 0:02:44]}  f6 {[%clk 0:02:37]} 9. e5 {[%clk 0:02:41]}  Be7 {[%clk 0:02:19]} 10. g3 {[%clk 0:02:38]}  fxe5 {[%clk 0:02:15]} 11. Nxe5 {[%clk 0:02:38]}  Nxe5 {[%clk 0:02:15]} 12. Bxe5 {[%clk 0:02:39]}  d6 {[%clk 0:02:13]} 13. Bxg7 {[%clk 0:02:29]}  Rh7 {[%clk 0:01:57]} 14. Bb2 {[%clk 0:02:28]}  e5 {[%clk 0:01:48]} 15. Nd2 {[%clk 0:02:28]}  Bg4 {[%clk 0:01:48]} 16. f3 {[%clk 0:02:25]}  Be6 {[%clk 0:01:44]} 17. Qe2 {[%clk 0:02:24]}  Qd7 {[%clk 0:01:36]} 18. O-O-O {[%clk 0:02:24]}  O-O-O {[%clk 0:01:35]} 19. Rde1 {[%clk 0:02:22]}  Rg8 {[%clk 0:01:28]} 20. Rhg1 {[%clk 0:02:15]}  Rhg7 {[%clk 0:01:26]} 21. Qf2 {[%clk 0:02:16]}  Bd5 {[%clk 0:01:20]} 22. f4 {[%clk 0:01:32]}  Qf5 {[%clk 0:00:49]} 23. Qh2 {[%clk 0:01:02]}  exf4 {[%clk 0:00:18]} 24. Bxg7 {[%clk 0:00:59]}  Rxg7 {[%clk 0:00:19]} 25. gxf4 {[%clk 0:00:54]}  Rxg1 {[%clk 0:00:18]} 26. Rxg1 {[%clk 0:00:42]}  Qf6 {[%clk 0:00:18]} 27. Qh3+ {[%clk 0:00:32]}  Kc7 {[%clk 0:00:17]} 28. Qh2 {[%clk 0:00:07]}  Qa1+ {[%clk 0:00:12]} 29. Nb1 {[%clk 0:00:08]}  Bf6 {[%clk 0:00:13]} 30. c4 {[%clk 0:00:08]}  Bf3 {[%clk 0:00:06]} 31. Qd2 {[%clk 0:00:07]}  Bd4 {[%clk 0:00:06]} 32. Re1 {[%clk 0:00:07]}  Bg4 {[%clk 0:00:05]} 33. Qa5+ {[%clk 0:00:06]}  Kd7 {[%clk 0:00:03]} 34. Qxa7+ {[%clk 0:00:06]}  Kd8 {[%clk 0:00:04]} 35. Qa8+ {[%clk 0:00:06]}  Kd7 {[%clk 0:00:02]} 36. Qe8+ {[%clk 0:00:06]}  Kc7 {[%clk 0:00:03]} 37. Re7+ {[%clk 0:00:06]}  Kb6 {[%clk 0:00:01]} 38. Qb8+ {[%clk 0:00:07]} 1-0


[Site "https://www.chess.com"]

[Event "Titled Tuesday Blitz August 08 Early 2023"]
[White "Zakhartsov, Vladimir"]
[Black "Iskusnyh, Sergei"]
[WhiteFideId "4145097"]
[BlackFideId "4120027"]
[WhiteElo "2917"]
[BlackElo "2656"]
[Result "1-0"]
[Round "7"]
[TimeControl "180+1"]
[Date "2023.08.08"]
[WhiteClock "0:00:07"]
[BlackClock "0:00:00"]
[Board "16"]

1. d4 {[%clk 0:03:00]}  d5 {[%clk 0:02:59]} 2. c4 {[%clk 0:02:59]}  c6 {[%clk 0:02:57]} 3. Nf3 {[%clk 0:02:58]}  Nf6 {[%clk 0:02:57]} 4. Nc3 {[%clk 0:02:58]}  e6 {[%clk 0:02:54]} 5. Qd3 {[%clk 0:02:56]}  Nbd7 {[%clk 0:02:45]} 6. e4 {[%clk 0:02:55]}  dxe4 {[%clk 0:02:44]} 7. Nxe4 {[%clk 0:02:55]}  Nxe4 {[%clk 0:02:41]} 8. Qxe4 {[%clk 0:02:56]}  Bb4+ {[%clk 0:02:40]} 9. Bd2 {[%clk 0:02:52]}  Qa5 {[%clk 0:02:32]} 10. Bd3 {[%clk 0:02:29]}  Bxd2+ {[%clk 0:02:18]} 11. Nxd2 {[%clk 0:02:30]}  Nf6 {[%clk 0:02:18]} 12. Qe2 {[%clk 0:02:24]}  c5 {[%clk 0:02:18]} 13. dxc5 {[%clk 0:02:10]}  Qxc5 {[%clk 0:02:18]} 14. O-O {[%clk 0:02:10]}  Bd7 {[%clk 0:02:17]} 15. a3 {[%clk 0:02:05]}  Bc6 {[%clk 0:01:52]} 16. Nf3 {[%clk 0:01:49]}  Bxf3 {[%clk 0:01:21]} 17. Qxf3 {[%clk 0:01:50]}  Qc7 {[%clk 0:01:21]} 18. b4 {[%clk 0:01:48]}  O-O {[%clk 0:01:21]} 19. Rfd1 {[%clk 0:01:43]}  Rfd8 {[%clk 0:01:17]} 20. Bf1 {[%clk 0:01:41]}  b6 {[%clk 0:01:13]} 21. g3 {[%clk 0:01:41]}  Rxd1 {[%clk 0:01:12]} 22. Rxd1 {[%clk 0:01:40]}  Rc8 {[%clk 0:00:57]} 23. Qd3 {[%clk 0:01:35]}  g6 {[%clk 0:00:54]} 24. Qd4 {[%clk 0:01:31]}  Qe7 {[%clk 0:00:43]} 25. h4 {[%clk 0:01:30]}  h5 {[%clk 0:00:42]} 26. Qe5 {[%clk 0:01:11]}  Ng4 {[%clk 0:00:40]} 27. Qf4 {[%clk 0:01:08]}  Rd8 {[%clk 0:00:34]} 28. Be2 {[%clk 0:01:03]}  Rxd1+ {[%clk 0:00:26]} 29. Bxd1 {[%clk 0:01:04]}  Nf6 {[%clk 0:00:26]} 30. Bf3 {[%clk 0:01:01]}  e5 {[%clk 0:00:25]} 31. Qe3 {[%clk 0:00:59]}  e4 {[%clk 0:00:23]} 32. Bg2 {[%clk 0:00:55]}  Qe5 {[%clk 0:00:22]} 33. c5 {[%clk 0:00:55]}  bxc5 {[%clk 0:00:21]} 34. bxc5 {[%clk 0:00:54]}  Qa1+ {[%clk 0:00:20]} 35. Bf1 {[%clk 0:00:51]}  Qb2 {[%clk 0:00:18]} 36. c6 {[%clk 0:00:38]}  Qc2 {[%clk 0:00:15]} 37. Bb5 {[%clk 0:00:31]}  Ng4 {[%clk 0:00:14]} 38. Qf4 {[%clk 0:00:29]}  e3 {[%clk 0:00:14]} 39. fxe3 {[%clk 0:00:24]}  Qc5 {[%clk 0:00:13]} 40. c7 {[%clk 0:00:22]}  Nxe3 {[%clk 0:00:12]} 41. c8=Q+ {[%clk 0:00:17]}  Qxc8 {[%clk 0:00:11]} 42. Qxe3 {[%clk 0:00:17]}  Qc2 {[%clk 0:00:10]} 43. Bf1 {[%clk 0:00:16]}  Qb1 {[%clk 0:00:07]} 44. Qxa7 {[%clk 0:00:12]}  Qb3 {[%clk 0:00:07]} 45. Kh2 {[%clk 0:00:12]}  Qb2+ {[%clk 0:00:07]} 46. Bg2 {[%clk 0:00:12]}  Kg7 {[%clk 0:00:06]} 47. a4 {[%clk 0:00:12]}  Qe5 {[%clk 0:00:06]} 48. Qf2 {[%clk 0:00:10]}  Qc3 {[%clk 0:00:03]} 49. Qa2 {[%clk 0:00:09]}  Qa5 {[%clk 0:00:02]} 50. Qb2+ {[%clk 0:00:08]}  Kh7 {[%clk 0:00:02]} 51. Qb3 {[%clk 0:00:08]}  f5 {[%clk 0:00:00]} 52. Qb7+ {[%clk 0:00:07]} 1-0


[Site "https://www.chess.com"]

[Event "Titled Tuesday Blitz August 08 Early 2023"]
[White "Gholami Orimi, Mahdi"]
[Black "Thecourseoisildur"]
[WhiteFideId "12558486"]
[WhiteElo "2904"]
[BlackElo "2610"]
[Result "1-0"]
[Round "7"]
[TimeControl "180+1"]
[Date "2023.08.08"]
[WhiteClock "0:00:36"]
[BlackClock "0:00:01"]
[Board "17"]

1. d4 {[%clk 0:02:55]}  Nf6 {[%clk 0:03:00]} 2. c4 {[%clk 0:02:55]}  g6 {[%clk 0:03:00]} 3. g3 {[%clk 0:02:55]}  Bg7 {[%clk 0:03:00]} 4. Bg2 {[%clk 0:02:55]}  O-O {[%clk 0:03:01]} 5. Nc3 {[%clk 0:02:56]}  d6 {[%clk 0:03:01]} 6. Nf3 {[%clk 0:02:56]}  Nc6 {[%clk 0:03:01]} 7. O-O {[%clk 0:02:55]}  e5 {[%clk 0:03:01]} 8. dxe5 {[%clk 0:02:56]}  dxe5 {[%clk 0:03:02]} 9. Bg5 {[%clk 0:02:53]}  h6 {[%clk 0:03:01]} 10. Qxd8 {[%clk 0:02:52]}  Rxd8 {[%clk 0:03:02]} 11. Bxf6 {[%clk 0:02:52]}  Bxf6 {[%clk 0:03:03]} 12. Nd5 {[%clk 0:02:53]}  Kg7 {[%clk 0:03:03]} 13. Nxc7 {[%clk 0:02:54]}  Rb8 {[%clk 0:03:02]} 14. e4 {[%clk 0:02:53]}  Be6 {[%clk 0:02:56]} 15. Nd5 {[%clk 0:02:49]}  Be7 {[%clk 0:02:53]} 16. Rfd1 {[%clk 0:02:40]}  Bc5 {[%clk 0:02:53]} 17. a3 {[%clk 0:02:27]}  a5 {[%clk 0:02:52]} 18. Rab1 {[%clk 0:02:15]}  Bg4 {[%clk 0:02:18]} 19. h3 {[%clk 0:02:12]}  Bxf3 {[%clk 0:02:16]} 20. Bxf3 {[%clk 0:02:13]}  Nd4 {[%clk 0:02:16]} 21. Rd3 {[%clk 0:02:12]}  a4 {[%clk 0:02:13]} 22. Bd1 {[%clk 0:02:11]}  b5 {[%clk 0:02:06]} 23. cxb5 {[%clk 0:02:09]}  Nxb5 {[%clk 0:02:04]} 24. Bxa4 {[%clk 0:02:06]}  Nxa3 {[%clk 0:01:56]} 25. Rc1 {[%clk 0:02:04]}  Rdc8 {[%clk 0:01:30]} 26. Rdc3 {[%clk 0:01:55]}  Bxf2+ {[%clk 0:01:03]} 27. Kxf2 {[%clk 0:01:55]}  Rxb2+ {[%clk 0:01:04]} 28. Kf3 {[%clk 0:01:39]}  Rxc3+ {[%clk 0:01:03]} 29. Rxc3 {[%clk 0:01:40]}  Ra2 {[%clk 0:00:59]} 30. Nb4 {[%clk 0:01:14]}  Ra1 {[%clk 0:00:48]} 31. Bc6 {[%clk 0:01:11]}  Nb1 {[%clk 0:00:42]} 32. Rd3 {[%clk 0:01:07]}  Ra5 {[%clk 0:00:35]} 33. Bd5 {[%clk 0:01:04]}  Rc5 {[%clk 0:00:33]} 34. Nc6 {[%clk 0:01:03]}  Kf6 {[%clk 0:00:32]} 35. Nb8 {[%clk 0:00:42]}  Ke7 {[%clk 0:00:25]} 36. Nc6+ {[%clk 0:00:38]}  Kf6 {[%clk 0:00:24]} 37. h4 {[%clk 0:00:37]}  Nc3 {[%clk 0:00:23]} 38. Kg2 {[%clk 0:00:37]}  Nb5 {[%clk 0:00:21]} 39. Rf3+ {[%clk 0:00:37]}  Kg7 {[%clk 0:00:19]} 40. Rxf7+ {[%clk 0:00:37]}  Kh8 {[%clk 0:00:20]} 41. Ne7 {[%clk 0:00:37]}  Nd6 {[%clk 0:00:17]} 42. Nxg6+ {[%clk 0:00:37]}  Kg8 {[%clk 0:00:17]} 43. Rd7+ {[%clk 0:00:37]}  Nf7 {[%clk 0:00:14]} 44. Bxf7+ {[%clk 0:00:36]}  Kg7 {[%clk 0:00:14]} 45. h5 {[%clk 0:00:36]}  Rc2+ {[%clk 0:00:12]} 46. Kh3 {[%clk 0:00:36]}  Rc1 {[%clk 0:00:10]} 47. Kg4 {[%clk 0:00:35]}  Rf1 {[%clk 0:00:06]} 48. Bd5+ {[%clk 0:00:36]}  Kf6 {[%clk 0:00:01]} 49. Rf7# {[%clk 0:00:36]} 1-0


[Site "https://www.chess.com"]

[Event "Titled Tuesday Blitz August 08 Early 2023"]
[White "Klukin, Kirill"]
[Black "Zemlyanskii, Ivan"]
[WhiteFideId "24199273"]
[BlackFideId "24249971"]
[WhiteElo "2804"]
[BlackElo "2908"]
[Result "1/2-1/2"]
[Round "7"]
[TimeControl "180+1"]
[Date "2023.08.08"]
[WhiteClock "0:00:04"]
[BlackClock "0:00:10"]
[Board "23"]

1. d4 {[%clk 0:02:59]}  d5 {[%clk 0:02:59]} 2. c4 {[%clk 0:02:59]}  e6 {[%clk 0:03:00]} 3. Nc3 {[%clk 0:02:59]}  c6 {[%clk 0:02:57]} 4. Nf3 {[%clk 0:02:55]}  Nf6 {[%clk 0:02:57]} 5. e3 {[%clk 0:02:55]}  Nbd7 {[%clk 0:02:57]} 6. Qc2 {[%clk 0:02:55]}  Bd6 {[%clk 0:02:56]} 7. Bd3 {[%clk 0:02:55]}  dxc4 {[%clk 0:02:56]} 8. Bxc4 {[%clk 0:02:56]}  O-O {[%clk 0:02:57]} 9. O-O {[%clk 0:02:54]}  b5 {[%clk 0:02:57]} 10. Be2 {[%clk 0:02:54]}  Bb7 {[%clk 0:02:58]} 11. Rd1 {[%clk 0:02:55]}  Qc7 {[%clk 0:02:49]} 12. e4 {[%clk 0:02:55]}  e5 {[%clk 0:02:49]} 13. Bg5 {[%clk 0:02:56]}  exd4 {[%clk 0:02:33]} 14. Rxd4 {[%clk 0:02:57]}  Ne5 {[%clk 0:02:32]} 15. h3 {[%clk 0:02:57]}  Nxf3+ {[%clk 0:01:58]} 16. Bxf3 {[%clk 0:02:58]}  Bh2+ {[%clk 0:01:58]} 17. Kh1 {[%clk 0:02:57]}  Be5 {[%clk 0:01:59]} 18. Bxf6 {[%clk 0:02:58]}  Bxf6 {[%clk 0:01:40]} 19. Nd5 {[%clk 0:02:57]}  Qe5 {[%clk 0:01:27]} 20. Nxf6+ {[%clk 0:02:58]}  gxf6 {[%clk 0:01:22]} 21. Rad1 {[%clk 0:02:25]}  c5 {[%clk 0:01:08]} 22. Rd7 {[%clk 0:02:22]}  Bc6 {[%clk 0:01:08]} 23. R7d6 {[%clk 0:02:20]}  Rac8 {[%clk 0:01:07]} 24. b3 {[%clk 0:01:53]}  Rfe8 {[%clk 0:01:06]} 25. Qd2 {[%clk 0:01:41]}  Kg7 {[%clk 0:01:01]} 26. Re1 {[%clk 0:01:04]}  c4 {[%clk 0:00:50]} 27. bxc4 {[%clk 0:01:03]}  bxc4 {[%clk 0:00:51]} 28. Rd4 {[%clk 0:00:51]}  Ba8 {[%clk 0:00:45]} 29. Re3 {[%clk 0:00:50]}  Rc7 {[%clk 0:00:42]} 30. Bg4 {[%clk 0:00:44]}  c3 {[%clk 0:00:36]} 31. Rxc3 {[%clk 0:00:39]}  Rxc3 {[%clk 0:00:37]} 32. Qxc3 {[%clk 0:00:40]}  Bxe4 {[%clk 0:00:37]} 33. Qe3 {[%clk 0:00:31]}  f5 {[%clk 0:00:21]} 34. f3 {[%clk 0:00:17]}  Rb8 {[%clk 0:00:12]} 35. Qg5+ {[%clk 0:00:09]}  Kh8 {[%clk 0:00:12]} 36. Rd8+ {[%clk 0:00:09]}  Rxd8 {[%clk 0:00:10]} 37. Qxd8+ {[%clk 0:00:10]}  Kg7 {[%clk 0:00:11]} 38. Qg5+ {[%clk 0:00:11]}  Kf8 {[%clk 0:00:09]} 39. Qd8+ {[%clk 0:00:08]}  Kg7 {[%clk 0:00:09]} 40. Qg5+ {[%clk 0:00:08]}  Kf8 {[%clk 0:00:09]} 41. fxe4 {[%clk 0:00:03]}  Qa1+ {[%clk 0:00:09]} 42. Kh2 {[%clk 0:00:04]}  fxg4 {[%clk 0:00:10]} 43. Qd8+ {[%clk 0:00:04]}  Kg7 {[%clk 0:00:10]} 44. Qg5+ {[%clk 0:00:04]}  Kh8 {[%clk 0:00:09]} 45. Qd8+ {[%clk 0:00:03]}  Kg7 {[%clk 0:00:09]} 46. Qg5+ {[%clk 0:00:04]}  Kh8 {[%clk 0:00:09]} 47. Qd8+ {[%clk 0:00:04]}  Kg7 {[%clk 0:00:10]} 1/2-1/2


[Site "https://www.chess.com"]